fUST/lending_fUST_20240813
["ID","MTS","AMOUNT","RATE_DAILY","PERIOD"]
[334738182,1723523352681,-533.94882145,9.999e-05,2]
[334738183,1723523352866,-665.04001235,9.999e-05,2]
[334738184,1723523352888,-241.08007801,9.999e-05,2]
[334738185,1723523352909,-154.79103211,9.999e-05,2]
[334738186,1723523352931,-154.99510092,9.999e-05,2]
[334738187,1723523352980,-253.65501325,9.999e-05,2]
[334738188,1723523353027,-155.00910899,9.999e-05,2]
[334738189,1723523353074,-209.31521257,9.999e-05,2]
[334738190,1723523353122,-210.10628593,9.999e-05,2]
[334738191,1723523353170,-201.70451665,9.999e-05,2]
[334738192,1723523353199,-320.08358525,9.999e-05,2]
[334738193,1723523353222,-197.19992737,9.999e-05,2]
[334738194,1723523353242,-181.19526952,9.999e-05,2]
[334738195,1723523353264,-154.74467129,9.999e-05,2]
[334738196,1723523353286,-154.74467129,9.999e-05,2]
[334738197,1723523353307,-154.74467129,9.999e-05,2]
[334738198,1723523353327,-156.28070463,9.999e-05,2]
[334738199,1723523353348,-404.1964714,9.999e-05,2]
[334738200,1723523353370,-205.42133969,9.999e-05,2]
[334738201,1723523353391,-157.14199098,9.999e-05,2]
[334738202,1723523353413,-1020.88413461,9.999e-05,2]
[334738203,1723523353435,-154.74467129,9.999e-05,2]
[334738204,1723523353456,-183.31414419,9.999e-05,2]
[334738205,1723523353479,-180.67948358,9.999e-05,2]
[334738206,1723523353499,-301.21591624,9.999e-05,2]
[334738207,1723523353520,-325.17024248,9.999e-05,2]
[334738208,1723523353541,-814.4922367,9.999e-05,2]
[334738209,1723523353562,-520.25072733,9.999e-05,2]
[334738210,1723523353587,-156.78137498,9.999e-05,2]
[334738211,1723523353607,-1056.83393576,9.999e-05,2]
[334738212,1723523353629,-694.90272385,9.999e-05,2]
[334738213,1723523353649,-154.92097033,9.999e-05,2]
[334738214,1723523353670,-154.74467129,9.999e-05,2]
[334738215,1723523353689,-247.25070756,9.999e-05,2]
[334738216,1723523353709,-154.74467129,9.999e-05,2]
[334738217,1723523353731,-154.74467129,9.999e-05,2]
[334738218,1723523353753,-543.10371548,9.999e-05,2]
[334738219,1723523353773,-165.44061629,9.999e-05,2]
[334738220,1723523353793,-569.2097652,9.999e-05,2]
[334738221,1723523353813,-154.74467129,0.0001,2]
[334738222,1723523353834,-154.74467129,0.0001,2]
[334738223,1723523353854,-154.74467129,0.0001,2]
[334738224,1723523353874,-287.94781809,0.0001,2]
[334738225,1723523353894,-1182.4961797,0.0001,2]
[334738226,1723523353915,-420.0,0.00010131,2]
[334738227,1723523353935,-3574.2134495,0.00010846,2]
[334738228,1723523353956,-235.1570113,0.00010959,2]
[334738229,1723523353982,-587.0,0.00011144,2]
[334738230,1723523354002,-159.1608244,0.00011165,2]
[334738231,1723523354024,-195.039736,0.00011986,2]
[334738232,1723523354045,-195.039736,0.00012016,2]
[334738233,1723523354067,-195.039736,0.00012046,2]
[334738234,1723523354087,-823.0,0.00012259,2]
[334738235,1723523354108,-2613.02746053,0.000129,2]
[334738236,1723523354129,-2613.02746051,0.00012978,2]
[334738237,1723523354149,-3728.4697614,0.00013058,2]
[334738238,1723523354169,-150.34447071,0.00013168,2]
[334738239,1723523354190,-288.3473829,0.00013389,2]
[334738240,1723523354210,-368.5308972,0.00013389,2]
[334738241,1723523354234,-294.7248868,0.00013389,2]
[334738242,1723523354254,-1152.0,0.00013484,2]
[334738243,1723523354274,-2000.0,0.00013588,2]
[334738244,1723523354295,-187.90307372,0.00013588,2]
[334738245,1723523354317,-1684.14945754,0.00013598,2]
[334738246,1723523354338,-200.0,0.00013673,2]
[334738247,1723523354358,-200.0,0.00013673,2]
[334738248,1723523354378,-200.0,0.00013673,2]
[334738249,1723523354399,-200.0,0.00013673,2]
[334738250,1723523354420,-1485.72389611,0.00013678,2]
[334738251,1723523363460,154.79103211,9.999e-05,2]
[334738252,1723523363657,231.25959253,9.9e-05,2]
[334738253,1723523364246,193.27283192,9.999e-05,2]
[334738254,1723523364886,-177.0,0.000229,31]
[334738255,1723523364912,-177.0,0.000229,31]
[334738256,1723523364937,-177.0,0.000229,31]
[334738257,1723523364961,-0.04,0.00024899,31]
[334738258,1723523364985,-23205.7965051,0.00025,30]
[334738259,1723523365311,204.38485604,0.00011165,2]
[334738260,1723523369909,332.21200423,0.00011165,2]
[334738261,1723523381190,154.74467129,9.999e-05,2]
[334738262,1723523385974,242.12354771,0.00011165,2]
[334738263,1723523388576,342.43792084,0.00011165,2]
[334738264,1723523391307,419.43692469,0.00011165,2]
[334738321,1723523432097,-436.33522896,9.999e-05,2]
[334738328,1723523432157,-83.91549837,9.999e-05,2]
[334738330,1723523432166,-154.74467129,9.999e-05,2]
[334738332,1723523432176,-154.74467129,0.0001,2]
[334738334,1723523432186,-33.5773148,0.00011164,2]
[334738397,1723523439849,-266.4226852,0.00011164,2]
[334738399,1723523439859,-275.46579916,0.00011165,2]
[334738400,1723523439868,-155.09050817,0.00011165,2]
[334738401,1723523439878,-663.8954069,0.00011165,2]
[334738402,1723523439887,-846.46724827,0.00011165,2]
[334738403,1723523439897,-155.05124358,0.00011165,2]
[334738404,1723523439908,-2108.95048088,0.00011165,2]
[334738405,1723523439918,-154.74467129,0.00011165,2]
[334738406,1723523439928,-188.24074754,0.00011165,2]
[334738407,1723523439937,-210.10628593,0.00011165,2]
[334738408,1723523439947,-154.80647955,0.00011165,2]
[334738409,1723523439960,-154.99274883,0.00011165,2]
[334738410,1723523439969,-570.39792383,0.00011165,2]
[334738411,1723523439978,-155.11078576,0.00011165,2]
[334738412,1723523439987,-1019.52176171,0.00011165,2]
[334738413,1723523439997,-154.74467129,0.00011165,2]
[334738414,1723523440006,-154.74467129,0.00011165,2]
[334738415,1723523440017,-534.3800288,0.00011165,2]
[334738416,1723523440027,-1670.74719108,0.00011165,2]
[334738417,1723523440038,-420.0,0.0001228,2]
[334738418,1723523440048,-5323.40502986,0.00013333,2]
[334738419,1723523440060,-587.0,0.00013508,2]
[334738420,1723523440070,-184.07985622,0.00013533,2]
[334738422,1723523440080,-154.74467129,0.00013533,2]
[334738424,1723523440090,-180.67948358,0.00013533,2]
[334738426,1723523440099,-305.50361134,0.00013533,2]
[334738428,1723523440108,-154.83739293,0.00013533,2]
[334738430,1723523440118,-205.42133969,0.00013533,2]
[334738432,1723523440127,-156.78137498,0.00013533,2]
[334738434,1723523440136,-154.74467129,0.00013533,2]
[334738436,1723523440145,-320.86843276,0.00013533,2]
[334738438,1723523440155,-42388.53220002,0.00013533,2]
[334738440,1723523440164,-154.74467129,0.00013533,2]
[334738442,1723523440173,-341.17980474,0.00013533,2]
[334738444,1723523440182,-155.13431915,0.00013533,2]
[334738446,1723523440191,-167.05143374,0.00013533,2]
[334738447,1723523440200,-154.83739293,0.00013533,2]
[334738449,1723523440209,-180.97678282,0.00013598,2]
[334738451,1723523440219,-200.0,0.00013673,2]
[334738453,1723523440228,-4611.70964387,0.00013678,2]
[334738455,1723523440237,-388699.58790989,0.00013678,2]
[334738456,1723523440247,-209.21243023,0.00013698,2]
[334738458,1723523440256,-157.03111117,0.00013698,2]
[334738459,1723523440265,-500.0,0.00013698,2]
[334738460,1723523440274,-500.0,0.00013698,2]
[334738461,1723523440284,-500.0,0.00013698,2]
[334738462,1723523440293,-500.0,0.00013698,2]
[334738463,1723523440303,-500.0,0.00013698,2]
[334738464,1723523440312,-500.0,0.00013698,2]
[334738465,1723523440321,-556.92333374,0.00013698,2]
[334738466,1723523440331,-500.0,0.00013698,2]
[334738467,1723523440341,-500.0,0.00013698,2]
[334738468,1723523440352,-505.61469733,0.00013698,2]
[334738469,1723523440363,-500.0,0.00013698,2]
[334738470,1723523440372,-228.36885729,0.00013698,2]
[334738471,1723523440382,-500.0,0.00013698,2]
[334738472,1723523440391,-172.91369802,0.00013698,2]
[334738473,1723523440401,-500.0,0.00013698,2]
[334738474,1723523440410,-500.0,0.00013698,2]
[334738475,1723523440420,-500.0,0.00013698,2]
[334738476,1723523440429,-504.83601221,0.00013698,2]
[334738477,1723523440438,-506.63667381,0.00013698,2]
[334738478,1723523440447,-500.0,0.00013698,2]
[334738479,1723523440456,-500.0,0.00013698,2]
[334738480,1723523440466,-500.0,0.00013698,2]
[334738481,1723523440475,-500.0,0.00013698,2]
[334738482,1723523440485,-500.0,0.00013698,2]
[334738483,1723523440494,-500.0,0.00013698,2]
[334738484,1723523440503,-500.0,0.00013698,2]
[334738485,1723523440512,-500.0,0.00013698,2]
[334738486,1723523440521,-500.0,0.00013698,2]
[334738487,1723523440531,-1788.7,0.00013698,2]
[334738488,1723523440540,-550.32,0.00013698,2]
[334738489,1723523440549,-500.0,0.00013698,2]
[334738490,1723523440559,-540.45,0.00013698,2]
[334738491,1723523440568,-500.0,0.00013698,2]
[334738492,1723523440577,-500.0,0.00013698,2]
[334738493,1723523440586,-642.34,0.00013698,2]
[334738494,1723523440596,-500.0,0.00013698,2]
[334738495,1723523440610,-500.0,0.00013698,2]
[334738496,1723523440619,-500.0,0.00013698,2]
[334738497,1723523440628,-1248.06,0.00013698,2]
[334738498,1723523440637,-500.0,0.00013698,2]
[334738499,1723523440647,-500.0,0.00013698,2]
[334738500,1723523440656,-500.0,0.00013698,2]
[334738501,1723523440665,-500.0,0.00013698,2]
[334738502,1723523440674,-500.0,0.00013698,2]
[334738503,1723523440686,-500.0,0.00013698,2]
[334738504,1723523440696,-500.0,0.00013698,2]
[334738505,1723523440707,-500.0,0.00013698,2]
[334738506,1723523440717,-500.0,0.00013698,2]
[334738507,1723523440726,-500.0,0.00013698,2]
[334738508,1723523440736,-500.0,0.00013698,2]
[334738509,1723523440746,-500.0,0.00013698,2]
[334738510,1723523440756,-500.0,0.00013698,2]
[334738511,1723523440766,-500.0,0.00013698,2]
[334738512,1723523440777,-500.0,0.00013698,2]
[334738513,1723523440786,-500.0,0.00013698,2]
[334738514,1723523440796,-405.5421487,0.00013698,2]
[334738515,1723523440805,-588.08,0.00013698,2]
[334738516,1723523440815,-519.46229642,0.00013698,2]
[334738517,1723523440824,-500.0,0.00013698,2]
[334738518,1723523440834,-503.23260538,0.00013698,2]
[334738519,1723523440843,-500.0,0.00013698,2]
[334738520,1723523440852,-500.0,0.00013698,2]
[334738521,1723523440861,-500.0,0.00013698,2]
[334738522,1723523440871,-500.0,0.00013698,2]
[334738523,1723523440881,-500.0,0.00013698,2]
[334738524,1723523440892,-500.0,0.00013698,2]
[334738525,1723523440903,-689.66,0.00013698,2]
[334738526,1723523440912,-500.0,0.00013698,2]
[334738527,1723523440921,-191.83969211,0.00013698,2]
[334738528,1723523440932,-500.0,0.00013698,2]
[334738529,1723523440942,-517.03,0.00013698,2]
[334738530,1723523440951,-500.0,0.00013698,2]
[334738531,1723523440960,-499.12860952,0.00013698,2]
[334738532,1723523440970,-500.0,0.00013698,2]
[334738533,1723523440979,-504.75377848,0.00013698,2]
[334738534,1723523440989,-506.22603401,0.00013698,2]
[334738535,1723523440998,-507.19580789,0.00013698,2]
[334738536,1723523441007,-170.21343717,0.00013698,2]
[334738537,1723523441016,-500.0,0.00013698,2]
[334738538,1723523441027,-500.0,0.00013698,2]
[334738539,1723523441036,-500.0,0.00013698,2]
[334738540,1723523441046,-500.0,0.00013698,2]
[334738541,1723523441056,-500.0,0.00013698,2]
[334738542,1723523441065,-500.0,0.00013698,2]
[334738543,1723523441075,-500.0,0.00013698,2]
[334738544,1723523441084,-504.93221974,0.00013698,2]
[334738545,1723523441094,-500.0,0.00013698,2]
[334738546,1723523441103,-500.0,0.00013698,2]
[334738547,1723523441112,-500.0,0.00013698,2]
[334738548,1723523441121,-541.57,0.00013698,2]
[334738549,1723523441130,-717.31,0.00013698,2]
[334738550,1723523441140,-539.91,0.00013698,2]
[334738551,1723523441149,-500.0,0.00013698,2]
[334738552,1723523441158,-500.0,0.00013698,2]
[334738553,1723523441169,-500.0,0.00013698,2]
[334738554,1723523441178,-500.0,0.00013698,2]
[334738555,1723523441188,-500.0,0.00013698,2]
[334738556,1723523441197,-500.0,0.00013698,2]
[334738557,1723523441207,-553.1,0.00013698,2]
[334738558,1723523441217,-484.65310663,0.00013698,2]
[334738559,1723523441227,-579.41162,0.00013698,2]
[334738560,1723523441237,-500.0,0.00013698,2]
[334738561,1723523441248,-500.0,0.00013698,2]
[334738562,1723523441258,-500.0,0.00013698,2]
[334738563,1723523441269,-500.0,0.00013698,2]
[334738564,1723523441278,-500.0,0.00013698,2]
[334738565,1723523441288,-500.0,0.00013698,2]
[334738566,1723523441297,-166.69620456,0.00013698,2]
[334738567,1723523441306,-500.0,0.00013698,2]
[334738568,1723523441315,-500.0,0.00013698,2]
[334738569,1723523441324,-500.0,0.00013698,2]
[334738570,1723523441333,-500.0,0.00013698,2]
[334738571,1723523441342,-500.0,0.00013698,2]
[334738572,1723523441351,-505.0683132,0.00013698,2]
[334738573,1723523441360,-632.68876494,0.00013698,2]
[334738574,1723523441369,-500.0,0.00013698,2]
[334738575,1723523441378,-500.0,0.00013698,2]
[334738576,1723523441387,-500.0,0.00013698,2]
[334738577,1723523441396,-500.0,0.00013698,2]
[334738578,1723523441405,-825.63,0.00013698,2]
[334738579,1723523441415,-500.0,0.00013698,2]
[334738580,1723523441423,-500.0,0.00013698,2]
[334738581,1723523441433,-500.0,0.00013698,2]
[334738582,1723523441443,-661.6,0.00013698,2]
[334738583,1723523441455,-500.0,0.00013698,2]
[334738584,1723523441466,-500.0,0.00013698,2]
[334738585,1723523441475,-500.0,0.00013698,2]
[334738586,1723523441484,-500.0,0.00013698,2]
[334738587,1723523441493,-297.51445606,0.00013698,2]
[334738588,1723523441502,-500.0,0.00013698,2]
[334738589,1723523441511,-500.0,0.00013698,2]
[334738590,1723523441520,-500.0,0.00013698,2]
[334738591,1723523441529,-500.0,0.00013698,2]
[334738592,1723523441540,-242.33290161,0.00013698,2]
[334738593,1723523441549,-500.0,0.00013698,2]
[334738594,1723523441558,-500.0,0.00013698,2]
[334738595,1723523441567,-500.0,0.00013698,2]
[334738596,1723523441577,-500.0,0.00013698,2]
[334738597,1723523441586,-501.44520048,0.00013698,2]
[334738598,1723523441595,-500.0,0.00013698,2]
[334738599,1723523441607,-1177.53,0.00013698,2]
[334738600,1723523441625,-500.0,0.00013698,2]
[334738601,1723523441637,-584.15,0.00013698,2]
[334738602,1723523441648,-500.0,0.00013698,2]
[334738603,1723523441657,-300.0,0.00013698,2]
[334738604,1723523441668,-500.0,0.00013698,2]
[334738605,1723523441677,-500.0,0.00013698,2]
[334738606,1723523441686,-588.29,0.00013698,2]
[334738607,1723523441695,-500.0,0.00013698,2]
[334738608,1723523441704,-501.91736511,0.00013698,2]
[334738609,1723523441713,-500.0,0.00013698,2]
[334738610,1723523441723,-906.13,0.00013698,2]
[334738611,1723523441736,-500.0,0.00013698,2]
[334738612,1723523441745,-500.0,0.00013698,2]
[334738613,1723523441754,-916.86,0.00013698,2]
[334738614,1723523441765,-500.0,0.00013698,2]
[334738615,1723523441774,-500.0,0.00013698,2]
[334738616,1723523441783,-500.0,0.00013698,2]
[334738617,1723523441798,-500.0,0.00013698,2]
[334738618,1723523441807,-500.0,0.00013698,2]
[334738619,1723523441816,-300.0,0.00013698,2]
[334738620,1723523441825,-500.0,0.00013698,2]
[334738621,1723523441835,-900.94,0.00013698,2]
[334738622,1723523441844,-740.52,0.00013698,2]
[334738623,1723523441853,-500.0,0.00013698,2]
[334738624,1723523441862,-506.66210793,0.00013698,2]
[334738625,1723523441871,-685.35,0.00013698,2]
[334738626,1723523441880,-500.0,0.00013698,2]
[334738627,1723523441889,-500.0,0.00013698,2]
[334738628,1723523441898,-237.71194581,0.00013698,2]
[334738629,1723523441907,-500.0,0.00013698,2]
[334738630,1723523441916,-805.1,0.00013698,2]
[334738631,1723523441925,-538.88936647,0.00013698,2]
[334738632,1723523441935,-500.0,0.00013698,2]
[334738633,1723523441943,-1093.19,0.00013698,2]
[334738634,1723523441953,-274.41065796,0.00013698,2]
[334738635,1723523441961,-6116.78,0.00013698,2]
[334738636,1723523441971,-1322.47,0.00013698,2]
[334738637,1723523441983,-500.0,0.00013698,2]
[334738638,1723523441994,-500.0,0.00013698,2]
[334738639,1723523442004,-500.0,0.00013698,2]
[334738640,1723523442015,-500.0,0.00013698,2]
[334738641,1723523442024,-500.0,0.00013698,2]
[334738642,1723523442033,-733.03,0.00013698,2]
[334738643,1723523442043,-500.0,0.00013698,2]
[334738644,1723523442054,-921.05,0.00013698,2]
[334738645,1723523442065,-500.0,0.00013698,2]
[334738646,1723523442075,-500.0,0.00013698,2]
[334738647,1723523442084,-3834.29,0.00013698,2]
[334738648,1723523442096,-890.31,0.00013698,2]
[334738649,1723523442106,-1137.11,0.00013698,2]
[334738650,1723523442115,-1080.02,0.00013698,2]
[334738651,1723523442126,-1727.88,0.00013698,2]
[334738652,1723523442137,-500.0,0.00013698,2]
[334738653,1723523442147,-500.0,0.00013698,2]
[334738654,1723523442158,-500.0,0.00013698,2]
[334738655,1723523442169,-500.0,0.00013698,2]
[334738656,1723523442178,-541.61,0.00013698,2]
[334738657,1723523442189,-556.09,0.00013698,2]
[334738658,1723523442198,-541.61,0.00013698,2]
[334738659,1723523442208,-541.61,0.00013698,2]
[334738660,1723523442220,-4023.43,0.00013698,2]
[334738661,1723523442229,-541.61,0.00013698,2]
[334738662,1723523442241,-500.0,0.00013698,2]
[334738663,1723523442250,-500.0,0.00013698,2]
[334738664,1723523442261,-541.61,0.00013698,2]
[334738665,1723523442272,-541.61,0.00013698,2]
[334738666,1723523442281,-541.61,0.00013698,2]
[334738667,1723523442292,-541.61,0.00013698,2]
[334738668,1723523442302,-541.61,0.00013698,2]
[334738669,1723523442311,-541.61,0.00013698,2]
[334738670,1723523442321,-541.61,0.00013698,2]
[334738671,1723523442332,-541.61,0.00013698,2]
[334738672,1723523442342,-500.0,0.00013698,2]
[334738673,1723523442352,-3442.57,0.00013698,2]
[334738674,1723523442362,-500.0,0.00013698,2]
[334738675,1723523442372,-980.87,0.00013698,2]
[334738676,1723523442381,-500.0,0.00013698,2]
[334738677,1723523442391,-500.0,0.00013698,2]
[334738678,1723523442400,-221.25196166,0.00013698,2]
[334738679,1723523442410,-500.0,0.00013698,2]
[334738680,1723523442422,-719.79,0.00013698,2]
[334738681,1723523442432,-500.0,0.00013698,2]
[334738682,1723523442442,-500.0,0.00013698,2]
[334738683,1723523442451,-507.79661399,0.00013698,2]
[334738684,1723523442461,-1188.04,0.00013698,2]
[334738685,1723523442472,-500.0,0.00013698,2]
[334738686,1723523442482,-500.0,0.00013698,2]
[334738687,1723523442492,-1139.99,0.00013698,2]
[334738688,1723523442501,-500.0,0.00013698,2]
[334738689,1723523442511,-540.34874411,0.00013698,2]
[334738690,1723523442521,-501.56277265,0.00013698,2]
[334738691,1723523442531,-500.83788809,0.00013698,2]
[334738692,1723523442542,-900.08,0.00013698,2]
[334738693,1723523442551,-500.9843488,0.00013698,2]
[334738694,1723523442562,-506.44736509,0.00013698,2]
[334738696,1723523442571,-1263.18,0.00013698,2]
[334738697,1723523442581,-504.35557041,0.00013698,2]
[334738698,1723523442590,-500.0,0.00013698,2]
[334738699,1723523442601,-500.0,0.00013698,2]
[334738705,1723523442732,-501.24691792,0.00013698,2]
[334738706,1723523442744,-500.0,0.00013698,2]
[334738707,1723523442754,-270.742307,0.00013698,2]
[334738708,1723523442763,-502.36474691,0.00013698,2]
[334738709,1723523442772,-515.29,0.00013698,2]
[334738710,1723523442781,-691.25,0.00013698,2]
[334738711,1723523442793,-500.0,0.00013698,2]
[334738713,1723523442802,-500.0,0.00013698,2]
[334738714,1723523442812,-1127.76,0.00013698,2]
[334738715,1723523442821,-509.08617267,0.00013698,2]
[334738716,1723523442832,-502.20059774,0.00013698,2]
[334738717,1723523442843,-500.0,0.00013698,2]
[334738718,1723523442853,-500.0,0.00013698,2]
[334738719,1723523442863,-3403.83,0.00013698,2]
[334738720,1723523442873,-500.0,0.00013698,2]
[334738721,1723523442884,-502.66791495,0.00013698,2]
[334738722,1723523442894,-500.0,0.00013698,2]
[334738724,1723523442905,-500.0,0.00013698,2]
[334738725,1723523442915,-500.0,0.00013698,2]
[334738726,1723523442926,-501.84589957,0.00013698,2]
[334738727,1723523442935,-977.82,0.00013698,2]
[334738728,1723523442947,-500.0,0.00013698,2]
[334738729,1723523442957,-500.0,0.00013698,2]
[334738730,1723523442968,-672.5,0.00013698,2]
[334738731,1723523442978,-500.0,0.00013698,2]
[334738732,1723523442987,-500.0,0.00013698,2]
[334738733,1723523442996,-1192.46,0.00013698,2]
[334738734,1723523443005,-500.0,0.00013698,2]
[334738735,1723523443014,-2802.51,0.00013698,2]
[334738736,1723523443024,-500.0,0.00013698,2]
[334738737,1723523443034,-1200.68,0.00013698,2]
[334738738,1723523443046,-500.0,0.00013698,2]
[334738739,1723523443057,-2802.51,0.00013698,2]
[334738740,1723523443067,-411.93110367,0.00013698,2]
[334738741,1723523443076,-500.0,0.00013698,2]
[334738742,1723523443087,-2802.51,0.00013698,2]
[334738743,1723523443098,-2802.51,0.00013698,2]
[334738744,1723523443110,-2802.51,0.00013698,2]
[334738745,1723523443120,-508.09704504,0.00013698,2]
[334738746,1723523443131,-2802.51,0.00013698,2]
[334738747,1723523443141,-2802.51,0.00013698,2]
[334738748,1723523443153,-2802.51,0.00013698,2]
[334738749,1723523443164,-2802.51,0.00013698,2]
[334738751,1723523443173,-2802.51,0.00013698,2]
[334738752,1723523443182,-500.0,0.00013698,2]
[334738753,1723523443191,-2802.51,0.00013698,2]
[334738754,1723523443200,-2802.51,0.00013698,2]
[334738755,1723523443211,-2802.51,0.00013698,2]
[334738756,1723523443220,-500.0,0.00013698,2]
[334738757,1723523443230,-2802.51,0.00013698,2]
[334738758,1723523443242,-2802.51,0.00013698,2]
[334738759,1723523443252,-2802.51,0.00013698,2]
[334738760,1723523443262,-2802.51,0.00013698,2]
[334738761,1723523443271,-504.46577119,0.00013698,2]
[334738762,1723523443281,-500.0,0.00013698,2]
[334738763,1723523443291,-502.39977827,0.00013698,2]
[334738764,1723523443301,-505.99767687,0.00013698,2]
[334738765,1723523443310,-502.57236202,0.00013698,2]
[334738766,1723523443320,-729.96,0.00013698,2]
[334738767,1723523443329,-1202.35,0.00013698,2]
[334738768,1723523443338,-500.0,0.00013698,2]
[334738769,1723523443348,-500.0,0.00013698,2]
[334738770,1723523443356,-500.0,0.00013698,2]
[334738771,1723523443366,-501.81780332,0.00013698,2]
[334738772,1723523443376,-500.0,0.00013698,2]
[334738773,1723523443385,-504.28231088,0.00013698,2]
[334738774,1723523443397,-500.0,0.00013698,2]
[334738775,1723523443408,-500.0,0.00013698,2]
[334738776,1723523443418,-830.22,0.00013698,2]
[334738777,1723523443430,-1558.15,0.00013698,2]
[334738778,1723523443442,-501.79291286,0.00013698,2]
[334738779,1723523443452,-500.0,0.00013698,2]
[334738780,1723523443463,-743.38,0.00013698,2]
[334738781,1723523443472,-560.34,0.00013698,2]
[334738782,1723523443483,-602.22080301,0.00013698,2]
[334738783,1723523443492,-500.0,0.00013698,2]
[334738784,1723523443502,-501.68738157,0.00013698,2]
[334738785,1723523443512,-546.2636575,0.00013698,2]
[334738786,1723523443521,-538.82624112,0.00013698,2]
[334738787,1723523443530,-500.0,0.00013698,2]
[334738788,1723523443540,-1479.42,0.00013698,2]
[334738789,1723523443550,-583.66,0.00013698,2]
[334738790,1723523443560,-500.0,0.00013698,2]
[334738791,1723523443569,-510.90448398,0.00013698,2]
[334738792,1723523443578,-500.0,0.00013698,2]
[334738793,1723523443588,-500.0,0.00013698,2]
[334738794,1723523443597,-503.68425534,0.00013698,2]
[334738795,1723523443608,-675.37,0.00013698,2]
[334738796,1723523443618,-504.90979449,0.00013698,2]
[334738797,1723523443627,-505.23657201,0.00013698,2]
[334738798,1723523443638,-500.0,0.00013698,2]
[334738799,1723523443650,-525.95628427,0.00013698,2]
[334738800,1723523443660,-641.96,0.00013698,2]
[334738801,1723523443669,-635.17,0.00013698,2]
[334738802,1723523443678,-500.0,0.00013698,2]
[334738803,1723523443688,-500.0,0.00013698,2]
[334738804,1723523443697,-5198.41,0.00013698,2]
[334738805,1723523443706,-503.69358324,0.00013698,2]
[334738806,1723523443716,-500.0,0.00013698,2]
[334738807,1723523443725,-500.0,0.00013698,2]
[334738808,1723523443733,-186.81211809,0.00013698,2]
[334738809,1723523443743,-500.0,0.00013698,2]
[334738810,1723523443752,-345.92353588,0.00013698,2]
[334738811,1723523443761,-500.0,0.00013698,2]
[334738812,1723523443770,-593.57865587,0.00013698,2]
[334738813,1723523443780,-500.0,0.00013698,2]
[334738814,1723523443791,-5763.48,0.00013698,2]
[334738815,1723523443800,-500.0,0.00013698,2]
[334738816,1723523443811,-503.59029948,0.00013698,2]
[334738817,1723523443821,-1236.0,0.00013698,2]
[334738818,1723523443832,-500.0,0.00013698,2]
[334738819,1723523443842,-500.0,0.00013698,2]
[334738820,1723523443853,-500.0,0.00013698,2]
[334738821,1723523443863,-503.6395211,0.00013698,2]
[334738822,1723523443873,-500.0,0.00013698,2]
[334738823,1723523443883,-527.41057258,0.00013698,2]
[334738824,1723523443892,-2120.42,0.00013698,2]
[334738825,1723523443901,-500.0,0.00013698,2]
[334738826,1723523443910,-777.73,0.00013698,2]
[334738827,1723523443919,-1031.03,0.00013698,2]
[334738828,1723523443928,-1064.59,0.00013698,2]
[334738829,1723523443937,-500.0,0.00013698,2]
[334738830,1723523443947,-500.0,0.00013698,2]
[334738831,1723523443956,-502.4437557,0.00013698,2]
[334738832,1723523443965,-2036.28,0.00013698,2]
[334738833,1723523443974,-544.17,0.00013698,2]
[334738834,1723523443983,-500.0,0.00013698,2]
[334738835,1723523443994,-2967.86,0.00013698,2]
[334738836,1723523444002,-509.83521635,0.00013698,2]